[Event "WJCC U20 Open 2019"]
[Site "New Delhi"]
[Date "2019.10.19"]
[Round "6.6"]
[White "Murzin, Volodar"]
[Black "Harsha Bharathakoti"]
[Result "1-0"]
[ECO "B31"]
[WhiteElo "2433"]
[BlackElo "2530"]
[Annotator "ChessBase"]
[PlyCount "151"]
[EventDate "2019.10.15"]
[EventType "swiss"]
[EventCountry "IND"]
[SourceTitle "playchess.com"]
[Source "ChessBase"]
[SourceQuality "1"]
[TimeControl "40/5400+30:1800+30"]

1. e4 {[%emt 0:00:00]} c5 {[%emt 0:00:09]} 2. Nf3 {[%emt 0:00:00]} Nc6 {[%emt 0:00:40]} 3. Bb5 {[%emt 0:00:28]} g6 {[%emt 0:00:21]} 4. Bxc6 {[%emt 0:00:12]} dxc6 {[%emt 0:00:32]} 5. d3 {[%emt 0:00:10]} Bg7 {[%emt 0:00:25]} 6. O-O {[%emt 0:00:41]} Qc7 {[%emt 0:02:51]} 7. Nbd2 {[%emt 0:02:20]} Nf6 {[%emt 0:01:59]} 8. Re1 {[%emt 0:01:41]} O-O {[%emt 0:05:24]} 9. e5 {[%emt 0:01:35]} Nd5 {[%emt 0:04:12]} 10. a4 {[%emt 0:01:04]} a5 {[%emt 0:02:19]} 11. Qe2 {[%emt 0:04:50]} b6 {[%emt 0:05:11]} 12. h3 {[%emt 0:07:48]} Rd8 {[%emt 0:11:29]} 13. b3 {[%emt 0:07:03]} h6 {[%emt 0:07:48]} 14. Bb2 {[%emt 0:01:08]} Be6 {[%emt 0:02:54]} 15. Ne4 {[%emt 0:06:37]} Qc8 {[%emt 0:10:49]} 16. Rad1 {[%emt 0:04:01]} g5 {[%emt 0:16:03]} 17. Nh2 {[%emt 0:12:38]} Nf4 {[%emt 0:02:22]} 18. Qe3 {[%emt 0:03:24]} Bf5 {[%emt 0:07:47]} 19. h4 {[%emt 0:06:58]} Nd5 {[%emt 0:10:53]} 20. Qg3 {[%emt 0:00:13]} g4 {[%emt 0:00:05]} 21. h5 {[%emt 0:01:07]} Kh7 {[%emt 0:01:02]} 22. Qh4 {[%emt 0:02:59]} Ra7 {[%emt 0:02:00]} 23. Ng3 {[%emt 0:01:54]} Rg8 {[%emt 0:00:26]} 24. Nxf5 {[%emt 0:04:16]} Qxf5 {[%emt 0:00:04]} 25. Qxg4 {[%emt 0:01:15]} Qxg4 {[%emt 0:00:11]} 26. Nxg4 {[%emt 0:00:02]} Nf4 {[%emt 0:03:20]} 27. Bc1 {[%emt 0:03:52]} Nxh5 {[%emt 0:00:23]} 28. Re4 {[%emt 0:02:01]} Bf8 {[%emt 0:01:08]} 29. Ne3 {[%emt 0:08:55]} Ng7 {[%emt 0:01:09]} 30. g3 {[%emt 0:00:33]} Ne6 {[%emt 0:00:14]} 31. Kg2 {[%emt 0:00:18]} Rd7 {[%emt 0:00:41]} 32. Nc4 {[%emt 0:01:00]} Rb7 {[%emt 0:00:16]} 33. Rh1 {[%emt 0:01:06]} Nd4 {[%emt 0:00:33]} 34. Ne3 {[%emt 0:00:56]} Rg6 {[%emt 0:00:21]} 35. Bb2 {[%emt 0:01:28]} Rd7 {[%emt 0:00:55]} 36. Bxd4 {[%emt 0:04:37]} cxd4 {[%emt 0:00:05]} 37. Nf5 {[%emt 0:00:25]} c5 {[%emt 0:00:23]} 38. Nh4 {[%emt 0:00:18]} Rc6 {[%emt 0:00:46]} 39. Nf3 {[%emt 0:05:13]} Kg8 {[%emt 0:00:41]} 40. e6 {[%emt 0:01:47]} Rxe6 {[%emt 0:00:05]} 41. Rxe6 {[%emt 0:30:07]} fxe6 {[%emt 0:30:04]} 42. Ne5 {[%emt 0:00:14]} Rd6 {[%emt 0:00:00]} 43. Nc4 {[%emt 0:00:00]} Rc6 {[%emt 0:00:00]} 44. f4 {[%emt 0:00:00]} Bg7 {[%emt 0:00:00]} 45. Kf3 {[%emt 0:00:00]} Kh7 {[%emt 0:00:00]} 46. Ke4 {[%emt 0:00:00]} Kg6 {[%emt 0:00:00]} 47. g4 {[%emt 0:00:00]} Bf6 {[%emt 0:00:00]} 48. Rh2 {[%emt 0:00:00]} Bg7 {[%emt 0:00:00]} 49. Rg2 {[%emt 0:00:00]} Bh8 {[%emt 0:00:00]} 50. Rg3 {[%emt 0:00:00]} Bg7 {[%emt 0:00:00]} 51. Rg1 {[%emt 0:00:00]} Bh8 {[%emt 0:00:00]} 52. Nd2 {[%emt 0:00:00]} Rc8 {[%emt 0:00:00]} 53. Nf3 {[%emt 0:00:00]} Bf6 {[%emt 0:00:00]} 54. Nd2 {[%emt 0:00:00]} Bg7 {[%emt 0:00:04]} 55. Nc4 {[%emt 0:00:00]} Rc6 {[%emt 0:01:47]} 56. Rh1 {[%emt 0:00:00]} Bf6 {[%emt 0:00:46]} 57. g5 {[%emt 0:04:06]} hxg5 {[%emt 0:00:05]} 58. fxg5 {[%emt 0:00:02]} Bg7 {[%emt 0:00:13]} 59. Rf1 {[%emt 0:00:17]} Kxg5 {[%emt 0:04:09]} 60. Rf7 {[%emt 0:00:14]} Bf6 {[%emt 0:00:04]} 61. Rf8 {[%emt 0:00:10]} Kg4 {[%emt 0:00:04]} 62. Rg8+ {[%emt 0:01:36]} Kh4 {[%emt 0:00:36]} 63. Rb8 {[%emt 0:00:07]} Kg3 {[%emt 0:00:04]} 64. Rxb6 {[%emt 0:00:26]} Rc8 {[%emt 0:00:09]} 65. Rxe6 {[%emt 0:00:27]} Rh8 {[%emt 0:00:17]} 66. Nxa5 {[%emt 0:00:48]} Rh2 {[%emt 0:00:05]} 67. Kd5 {[%emt 0:00:12]} Rxc2 {[%emt 0:00:05]} 68. Nb7 {[%emt 0:00:35]} c4 {[%emt 0:00:18]} 69. bxc4 {[%emt 0:00:08]} Ra2 {[%emt 0:00:04]} 70. c5 {[%emt 0:02:15]} Bg5 {[%emt 0:02:06]} 71. c6 {[%emt 0:00:29]} Bf4 {[%emt 0:00:04]} 72. Nc5 {[%emt 0:00:40]} Rh2 {[%emt 0:01:14]} 73. Rxe7 {[%emt 0:00:08]} Rh5+ {[%emt 0:00:11]} 74. Kc4 {[%emt 0:00:04]} Rh6 {[%emt 0:00:16]} 75. Kb5 {[%emt 0:00:14]} Bd6 {[%emt 0:00:33]} 76. Ne4+ {[%emt 0:00:20] Rh8} 1-0

[Event "WJCC U20 Open 2019"]
[Site "New Delhi"]
[Date "2019.10.19"]
[Round "6.7"]
[White "Visakh N R"]
[Black "Raja Rithvik R"]
[Result "1/2-1/2"]
[ECO "B53"]
[WhiteElo "2529"]
[BlackElo "2369"]
[Annotator "ChessBase"]
[PlyCount "95"]
[EventDate "2019.10.15"]
[EventType "swiss"]
[EventCountry "IND"]
[SourceTitle "playchess.com"]
[Source "ChessBase"]
[SourceQuality "1"]
[TimeControl "40/5400+30:1800+30"]

1. e4 {[%emt 0:00:00]} c5 {[%emt 0:00:00]} 2. Nf3 {[%emt 0:00:00]} d6 {[%emt 0:00:01]} 3. d4 {[%emt 0:00:03]} cxd4 {[%emt 0:00:04]} 4. Qxd4 {[%emt 0:00:04]} Nc6 {[%emt 0:00:10]} 5. Bb5 {[%emt 0:00:07]} Bd7 {[%emt 0:00:16]} 6. Bxc6 {[%emt 0:00:10]} Bxc6 {[%emt 0:00:05]} 7. c4 {[%emt 0:00:04]} Nf6 {[%emt 0:00:08]} 8. Nc3 {[%emt 0:00:07]} g6 {[%emt 0:00:05]} 9. O-O {[%emt 0:01:30]} Bg7 {[%emt 0:00:04]} 10. Qd3 {[%emt 0:00:33]} O-O {[%emt 0:00:13]} 11. Nd4 {[%emt 0:00:05]} Rc8 {[%emt 0:00:25]} 12. b3 {[%emt 0:04:43]} Nxe4 {[%emt 0:02:51]} 13. Nxe4 {[%emt 0:00:29]} d5 {[%emt 0:00:03]} 14. Nxc6 {[%emt 0:00:29]} Rxc6 {[%emt 0:00:40]} 15. Rb1 {[%emt 0:00:09]} dxe4 {[%emt 0:00:05]} 16. Qxe4 {[%emt 0:00:03]} Qd7 {[%emt 0:00:04]} 17. Be3 {[%emt 0:03:26]} Rd8 {[%emt 0:00:26]} 18. Qf3 {[%emt 0:02:23]} Rd6 {[%emt 0:05:00]} 19. h4 {[%emt 0:06:58]} h5 {[%emt 0:11:38]} 20. g3 {[%emt 0:08:35]} Bd4 {[%emt 0:10:18]} 21. Rbe1 {[%emt 0:06:26]} Bxe3 {[%emt 0:05:35]} 22. Qxe3 {[%emt 0:03:43]} e6 {[%emt 0:00:12]} 23. Qxa7 {[%emt 0:08:38]} Ra6 {[%emt 0:00:05]} 24. Qe3 {[%emt 0:00:04]} Rxa2 {[%emt 0:00:13]} 25. Ra1 {[%emt 0:02:35]} Rd2 {[%emt 0:10:30]} 26. Ra7 {[%emt 0:01:30]} Qc6 {[%emt 0:01:09]} 27. Ra8 {[%emt 0:00:34]} Rxa8 {[%emt 0:05:04]} 28. Qxd2 {[%emt 0:00:02]} b5 {[%emt 0:00:35]} 29. cxb5 {[%emt 0:00:53]} Qxb5 {[%emt 0:00:06]} 30. b4 {[%emt 0:00:09]} Rb8 {[%emt 0:00:58]} 31. Rb1 {[%emt 0:00:23]} Kh7 {[%emt 0:14:09]} 32. Qd6 {[%emt 0:07:04]} Kg7 {[%emt 0:02:00]} 33. Qd4+ {[%emt 0:02:23]} e5 {[%emt 0:03:42]} 34. Qc3 {[%emt 0:01:11]} Kh7 {[%emt 0:00:31]} 35. Qc2 {[%emt 0:07:51]} Kg7 {[%emt 0:04:00]} 36. Qb2 {[%emt 0:01:11]} Kh7 {[%emt 0:00:54]} 37. Qc1 {[%emt 0:00:26]} Kg7 {[%emt 0:01:08]} 38. Qf1 {[%emt 0:00:22]} Kf6 {[%emt 0:01:18]} 39. Qxb5 {[%emt 0:04:17]} Rxb5 {[%emt 0:00:34]} 40. Kf1 {[%emt 0:00:22]} e4 {[%emt 0:04:21]} 41. Ke2 {[%emt 0:30:14]} Ke5 {[%emt 0:31:44]} 42. Ke3 {[%emt 0:00:04]} f6 {[%emt 0:00:11]} 43. Rb3 {[%emt 0:07:56]} g5 {[%emt 0:12:25]} 44. hxg5 {[%emt 0:14:19]} fxg5 {[%emt 0:00:09]} 45. Rb1 {[%emt 0:00:15]} h4 {[%emt 0:01:23]} 46. gxh4 {[%emt 0:00:12]} gxh4 {[%emt 0:00:04]} 47. Rh1 {[%emt 0:03:23]} Rxb4 {[%emt 0:00:07]} 48. Rxh4 {[%emt 0:00:03]} 1/2-1/2

[Event "WJCC U20 Open 2019"]
[Site "New Delhi"]
[Date "2019.10.19"]
[Round "6.8"]
[White "Wang, Shixu B"]
[Black "Khanin, Semen"]
[Result "0-1"]
[ECO "E70"]
[WhiteElo "2370"]
[BlackElo "2507"]
[Annotator "ChessBase"]
[PlyCount "216"]
[EventDate "2019.10.15"]
[EventType "swiss"]
[EventCountry "IND"]
[SourceTitle "playchess.com"]
[Source "ChessBase"]
[SourceQuality "1"]
[TimeControl "40/5400+30:1800+30"]

1. d4 {[%emt 0:00:00]} Nf6 {[%emt 0:00:00]} 2. c4 {[%emt 0:00:00]} g6 {[%emt 0:00:00]} 3. Nc3 {[%emt 0:00:00]} Bg7 {[%emt 0:00:00]} 4. e4 {[%emt 0:00:02]} d6 {[%emt 0:00:02]} 5. Nge2 {[%emt 0:00:38]} O-O {[%emt 0:00:08]} 6. Ng3 {[%emt 0:00:04]} h5 {[%emt 0:00:07]} 7. Be2 {[%emt 0:00:10]} a5 {[%emt 0:00:04]} 8. Bg5 {[%emt 0:05:24]} Nh7 {[%emt 0:02:15]} 9. Be3 {[%emt 0:00:10]} c5 {[%emt 0:00:07]} 10. dxc5 {[%emt 0:08:21]} dxc5 {[%emt 0:00:10]} 11. Qxd8 {[%emt 0:01:09]} Rxd8 {[%emt 0:00:42]} 12. Bxc5 {[%emt 0:01:20]} Nc6 {[%emt 0:01:20]} 13. Bb6 {[%emt 0:01:56]} Rd7 {[%emt 0:04:33]} 14. h4 {[%emt 0:03:14]} a4 {[%emt 0:07:33]} 15. a3 {[%emt 0:00:31]} Nf8 {[%emt 0:01:46]} 16. Rd1 {[%emt 0:02:55]} Rxd1+ {[%emt 0:03:34]} 17. Bxd1 {[%emt 0:08:52]} Bxc3+ {[%emt 0:15:08]} 18. bxc3 {[%emt 0:00:01]} Be6 {[%emt 0:01:46]} 19. Nf1 {[%emt 0:09:40]} Nd7 {[%emt 0:02:08]} 20. Bd4 {[%emt 0:00:11]} Bxc4 {[%emt 0:03:33]} 21. Nd2 {[%emt 0:00:16]} Nde5 {[%emt 0:17:36]} 22. Be2 {[%emt 0:15:03]} Nd3+ {[%emt 0:08:18]} 23. Bxd3 {[%emt 0:05:49]} Bxd3 {[%emt 0:00:16]} 24. Rh3 {[%emt 0:00:16]} Ba6 {[%emt 0:01:18]} 25. Kd1 {[%emt 0:01:47]} Rd8 {[%emt 0:02:24]} 26. Bb6 {[%emt 0:01:42]} Rd7 {[%emt 0:00:23]} 27. Kc2 {[%emt 0:02:00]} Ne5 {[%emt 0:01:25]} 28. Bd4 {[%emt 0:01:28]} Nd3 {[%emt 0:02:02]} 29. g3 {[%emt 0:00:54]} e5 {[%emt 0:01:49]} 30. Be3 {[%emt 0:00:08]} Ne1+ {[%emt 0:02:40]} 31. Kd1 {[%emt 0:06:04]} Nf3 {[%emt 0:01:23]} 32. Rh1 {[%emt 0:01:12]} Rd6 {[%emt 0:03:18]} 33. Kc1 {[%emt 0:01:51]} Nxd2 {[%emt 0:01:31]} 34. Bxd2 {[%emt 0:00:06]} Bd3 {[%emt 0:00:11]} 35. Be3 {[%emt 0:00:49]} Bxe4 {[%emt 0:00:05]} 36. Rd1 {[%emt 0:00:05]} Bd3 {[%emt 0:01:13]} 37. c4 {[%emt 0:00:11]} e4 {[%emt 0:05:04]} 38. c5 {[%emt 0:00:09]} Rc6 {[%emt 0:01:20]} 39. Kb2 {[%emt 0:02:58]} f6 {[%emt 0:00:46]} 40. f3 {[%emt 0:01:09]} f5 {[%emt 0:03:12]} 41. Rd2 {[%emt 0:30:09]} Kf7 {[%emt 0:31:14]} 42. fxe4 {[%emt 0:02:54]} fxe4 {[%emt 0:00:23]} 43. Rf2+ {[%emt 0:00:08]} Ke6 {[%emt 0:01:53]} 44. Rf8 {[%emt 0:09:41]} b6 {[%emt 0:00:00]} 45. cxb6 {[%emt 0:00:00]} Rc2+ {[%emt 0:00:00]} 46. Ka1 {[%emt 0:00:00]} Rc3 {[%emt 0:00:00]} 47. Bc5 {[%emt 0:00:00]} Rc1+ {[%emt 0:00:00]} 48. Ka2 {[%emt 0:00:00]} Ba6 {[%emt 0:01:31]} 49. Bb4 {[%emt 0:00:00]} Rc6 {[%emt 0:00:40]} 50. Rb8 {[%emt 0:00:00]} Kd7 {[%emt 0:00:41]} 51. Ba5 {[%emt 0:00:00]} Re6 {[%emt 0:02:27]} 52. Rd8+ {[%emt 0:04:51]} Kc6 {[%emt 0:00:04]} 53. Rd4 {[%emt 0:00:24]} e3 {[%emt 0:03:02]} 54. b7 {[%emt 0:01:57]} Bxb7 {[%emt 0:01:38]} 55. Be1 {[%emt 0:01:13]} Rd6 {[%emt 0:02:00]} 56. Re4 {[%emt 0:03:46]} Rd3 {[%emt 0:00:11]} 57. Rxa4 {[%emt 0:00:48]} Rd1 {[%emt 0:00:10]} 58. Bc3 {[%emt 0:00:05]} Kd5 {[%emt 0:00:18]} 59. g4 {[%emt 0:01:00]} e2 {[%emt 0:00:54]} 60. gxh5 {[%emt 0:00:17]} gxh5 {[%emt 0:00:05]} 61. Kb2 {[%emt 0:01:20]} Bc6 {[%emt 0:01:28]} 62. Ra5+ {[%emt 0:00:42]} Kc4 {[%emt 0:00:17]} 63. Re5 {[%emt 0:00:52]} Kd3 {[%emt 0:00:42]} 64. Rxh5 {[%emt 0:01:22]} Be4 {[%emt 0:00:14]} 65. Re5 {[%emt 0:00:34]} e1=Q {[%emt 0:00:40]} 66. Bxe1 {[%emt 0:00:05]} Rxe1 {[%emt 0:00:02]} 67. Re8 {[%emt 0:01:58]} Re2+ {[%emt 0:00:08]} 68. Kc1 {[%emt 0:00:41]} Rf2 {[%emt 0:01:17]} 69. Rc8 {[%emt 0:00:18]} Bf5 {[%emt 0:00:42]} 70. Rc6 {[%emt 0:00:32]} Be4 {[%emt 0:00:23]} 71. Rc7 {[%emt 0:00:21]} Ke3 {[%emt 0:00:38]} 72. a4 {[%emt 0:00:10]} Rf1+ {[%emt 0:00:07]} 73. Kb2 {[%emt 0:00:04]} Rb1+ {[%emt 0:00:02]} 74. Ka2 {[%emt 0:00:24]} Rb8 {[%emt 0:00:12]} 75. Rd7 {[%emt 0:00:36]} Bf5 {[%emt 0:00:41]} 76. Rd6 {[%emt 0:00:14]} Bd3 {[%emt 0:00:13]} 77. a5 {[%emt 0:00:45]} Kd2 {[%emt 0:00:04]} 78. Rc6 {[%emt 0:00:15]} Be4 {[%emt 0:00:12]} 79. Rc5 {[%emt 0:00:15]} Kd3 {[%emt 0:00:21]} 80. a6 {[%emt 0:00:51]} Kd4 {[%emt 0:00:02]} 81. Rc7 {[%emt 0:00:18]} Bd5+ {[%emt 0:00:16]} 82. Ka3 {[%emt 0:00:46]} Rh8 {[%emt 0:01:58]} 83. Kb4 {[%emt 0:00:36]} Rxh4 {[%emt 0:00:08]} 84. Kb5 {[%emt 0:00:36]} Rh1 {[%emt 0:00:14]} 85. Kb6 {[%emt 0:00:27]} Rb1+ {[%emt 0:00:03]} 86. Ka7 {[%emt 0:00:10]} Ke5 {[%emt 0:00:06]} 87. Rb7 {[%emt 0:00:33]} Ra1 {[%emt 0:00:14]} 88. Rb6 {[%emt 0:00:07]} Kd4 {[%emt 0:00:06]} 89. Kb8 {[%emt 0:01:35]} Kc5 {[%emt 0:00:08]} 90. Rh6 {[%emt 0:00:18]} Rg1 {[%emt 0:00:57]} 91. Kc7 {[%emt 0:01:24]} Rg7+ {[%emt 0:00:13]} 92. Kc8 {[%emt 0:00:26]} Bc6 {[%emt 0:00:24]} 93. Kd8 {[%emt 0:00:33]} Rd7+ {[%emt 0:00:08]} 94. Kc8 {[%emt 0:00:08]} Kb6 {[%emt 0:00:10]} 95. Re6 {[%emt 0:00:48]} Rh7 {[%emt 0:02:54]} 96. Kd8 {[%emt 0:00:19]} Ra7 {[%emt 0:00:28]} 97. Rf6 {[%emt 0:00:46]} Kc5 {[%emt 0:00:46]} 98. Rf5+ {[%emt 0:00:22]} Kd6 {[%emt 0:00:16]} 99. Rf6+ {[%emt 0:00:06]} Kd5 {[%emt 0:00:04]} 100. Rf2 {[%emt 0:00:56]} Ke6 {[%emt 0:00:27]} 101. Kc8 {[%emt 0:00:28]} Bd5 {[%emt 0:01:07]} 102. Kb8 {[%emt 0:00:27]} Rxa6 {[%emt 0:00:29]} 103. Kc7 {[%emt 0:00:35]} Rc6+ {[%emt 0:00:03]} 104. Kb8 {[%emt 0:00:31]} Rb6+ {[%emt 0:00:11]} 105. Ka7 {[%emt 0:00:10]} Rb4 {[%emt 0:00:35]} 106. Rh2 {[%emt 0:00:50]} Kd6 {[%emt 0:00:10]} 107. Rh6+ {[%emt 0:00:24]} Kc5 {[%emt 0:00:07]} 108. Rh7 {[%emt 0:00:39]} Ra4+ {[%emt 0:00:04]} 0-1

[Event "WJCC U20 Open 2019"]
[Site "New Delhi"]
[Date "2019.10.19"]
[Round "6.9"]
[White "Aaryan Varshney"]
[Black "Costachi, Mihnea"]
[Result "0-1"]
[ECO "D15"]
[WhiteElo "2239"]
[BlackElo "2463"]
[Annotator "ChessBase"]
[PlyCount "134"]
[EventDate "2019.10.15"]
[EventType "swiss"]
[EventCountry "IND"]
[SourceTitle "playchess.com"]
[Source "ChessBase"]
[SourceQuality "1"]
[TimeControl "40/5400+30:1800+30"]

1. d4 {[%emt 0:00:00]} d5 {[%emt 0:00:00]} 2. c4 {[%emt 0:00:00]} c6 {[%emt 0:00:00]} 3. Nf3 {[%emt 0:00:00]} Nf6 {[%emt 0:00:01]} 4. Nc3 {[%emt 0:00:00]} a6 {[%emt 0:00:35]} 5. e3 {[%emt 0:00:01]} b5 {[%emt 0:01:19]} 6. b3 {[%emt 0:00:07]} Bg4 {[%emt 0:00:13]} 7. Be2 {[%emt 0:00:09]} e6 {[%emt 0:00:10]} 8. O-O {[%emt 0:00:09]} Nbd7 {[%emt 0:00:37]} 9. h3 {[%emt 0:00:11]} Bh5 {[%emt 0:00:05]} 10. Bb2 {[%emt 0:00:11]} Bd6 {[%emt 0:01:11]} 11. Ne5 {[%emt 0:00:13]} Bxe2 {[%emt 0:00:06]} 12. Nxe2 {[%emt 0:00:02]} bxc4 {[%emt 0:00:31]} 13. bxc4 {[%emt 0:02:51]} O-O {[%emt 0:00:36]} 14. cxd5 {[%emt 0:03:52]} cxd5 {[%emt 0:01:18]} 15. Nxd7 {[%emt 0:00:55]} Qxd7 {[%emt 0:05:14]} 16. Qd3 {[%emt 0:00:41]} Qa4 {[%emt 0:15:58]} 17. Qb3 {[%emt 0:03:00]} Qb5 {[%emt 0:08:11]} 18. Rfe1 {[%emt 0:15:34]} Rfb8 {[%emt 0:05:06]} 19. Qxb5 {[%emt 0:01:38]} Rxb5 {[%emt 0:14:28]} 20. Bc3 {[%emt 0:00:55]} Ne4 {[%emt 0:05:09]} 21. Reb1 {[%emt 0:07:36]} Rab8 {[%emt 0:00:41]} 22. Rxb5 {[%emt 0:01:49]} Rxb5 {[%emt 0:01:31]} 23. Be1 {[%emt 0:01:53]} Rb2 {[%emt 0:16:49]} 24. Nc3 {[%emt 0:03:48]} Nxc3 {[%emt 0:03:53]} 25. Bxc3 {[%emt 0:00:12]} Rc2 {[%emt 0:00:03]} 26. Be1 {[%emt 0:00:36]} g6 {[%emt 0:03:05]} 27. a3 {[%emt 0:04:29]} Kf8 {[%emt 0:02:31]} 28. Bb4 {[%emt 0:02:58]} Ke7 {[%emt 0:00:55]} 29. Rb1 {[%emt 0:00:16]} Bxb4 {[%emt 0:00:54]} 30. Rxb4 {[%emt 0:00:45]} Rc1+ {[%emt 0:00:06]} 31. Kh2 {[%emt 0:00:04]} Rc4 {[%emt 0:00:15]} 32. Rb7+ {[%emt 0:00:45]} Kf6 {[%emt 0:00:20]} 33. Rb6 {[%emt 0:00:23]} Ra4 {[%emt 0:01:03]} 34. Rb3 {[%emt 0:00:02]} h5 {[%emt 0:01:05]} 35. Kg3 {[%emt 0:02:11]} e5 {[%emt 0:03:42]} 36. dxe5+ {[%emt 0:08:25]} Kxe5 {[%emt 0:00:02]} 37. Kf3 {[%emt 0:00:17]} f5 {[%emt 0:02:48]} 38. Rb8 {[%emt 0:10:23]} Rxa3 {[%emt 0:04:00]} 39. Re8+ {[%emt 0:00:11]} Kf6 {[%emt 0:00:18]} 40. Rd8 {[%emt 0:00:12]} Ke6 {[%emt 0:00:59]} 41. h4 {[%emt 0:34:31]} a5 {[%emt 0:33:31]} 42. Ke2 {[%emt 0:04:18]} Ra2+ {[%emt 0:00:00]} 43. Kf3 {[%emt 0:00:00]} a4 {[%emt 0:00:00]} 44. Rg8 {[%emt 0:00:00]} Kf6 {[%emt 0:00:00]} 45. Rd8 {[%emt 0:00:00]} Ke5 {[%emt 0:00:00]} 46. Rg8 {[%emt 0:00:00]} a3 {[%emt 0:00:00]} 47. Rxg6 {[%emt 0:00:00]} Rc2 {[%emt 0:00:00]} 48. Ra6 {[%emt 0:00:00]} a2 {[%emt 0:00:00]} 49. Ra8 {[%emt 0:00:00]} Kd6 {[%emt 0:00:00]} 50. Kg3 {[%emt 0:00:00]} Kc5 {[%emt 0:00:00]} 51. f3 {[%emt 0:00:00]} Kb4 {[%emt 0:00:00]} 52. Kf4 {[%emt 0:00:00]} Kb3 {[%emt 0:00:00]} 53. Kxf5 {[%emt 0:00:00]} Rxg2 {[%emt 0:01:18]} 54. f4 {[%emt 0:00:00]} Re2 {[%emt 0:01:36]} 55. Ke5 {[%emt 0:00:00]} Rxe3+ {[%emt 0:00:05]} 56. Kxd5 {[%emt 0:00:00]} Kb2 {[%emt 0:00:36]} 57. Rxa2+ {[%emt 0:00:00]} Kxa2 {[%emt 0:00:01]} 58. f5 {[%emt 0:00:00]} Rh3 {[%emt 0:00:13]} 59. f6 {[%emt 0:00:00]} Rxh4 {[%emt 0:00:08]} 60. Ke5 {[%emt 0:00:00]} Rh1 {[%emt 0:00:06]} 61. f7 {[%emt 0:00:00]} Re1+ {[%emt 0:00:12]} 62. Kf6 {[%emt 0:00:00]} Rf1+ {[%emt 0:00:08]} 63. Kg7 {[%emt 0:00:00]} h4 {[%emt 0:00:05]} 64. f8=R {[%emt 0:00:00]} Rxf8 {[%emt 0:00:04]} 65. Kxf8 {[%emt 0:00:00]} h3 {[%emt 0:00:03]} 66. Kg7 {[%emt 0:00:00]} h2 {[%emt 0:00:03]} 67. Kf6 {[%emt 0:00:00]} h1=Q {[%emt 0:00:07]} 0-1